fUST/lending_fUST_20250312
["ID","MTS","AMOUNT","RATE_DAILY","PERIOD"]
[355991672,1741776632430,-13933.83306825,0.00017,2]
[355991673,1741776632441,-167.8448478,0.00017,2]
[355991674,1741776632451,-167.8448478,0.00017,2]
[355991675,1741776632460,-186.8724011,0.00017,2]
[355991676,1741776632469,-1133.7637503,0.00017,2]
[355991677,1741776632478,-167.8448478,0.00017,2]
[355991678,1741776632487,-171.8969915,0.00017,2]
[355991679,1741776632496,-167.8448478,0.00017,2]
[355991680,1741776632506,-167.8448478,0.00017,2]
[355991681,1741776632515,-622.2,0.00017045,2]
[355991682,1741776632524,-175.984,0.00017093,2]
[355991683,1741776632533,-490.4383338,0.00017096,2]
[355991684,1741776632542,-167.8448478,0.000171,2]
[355991685,1741776632551,-167.8448478,0.000171,2]
[355991686,1741776632560,-645.2214,0.000171,2]
[355991687,1741776632570,-847.89680982,0.00017147,2]
[355991688,1741776632579,-669.0945918,0.00017155,2]
[355991689,1741776632588,-500.0,0.00017173,2]
[355991690,1741776632597,-500.0,0.00017173,2]
[355991691,1741776632606,-500.0,0.00017173,2]
[355991692,1741776632619,-500.0,0.00017173,2]
[355991693,1741776632629,-500.0,0.00017173,2]
[355991694,1741776632638,-500.0,0.00017173,2]
[355991695,1741776632647,-500.0,0.00017173,2]
[355991696,1741776632657,-500.0,0.00017173,2]
[355991697,1741776632667,-500.0,0.00017173,2]
[355991698,1741776632676,-500.0,0.00017173,2]
[355991699,1741776632686,-617.75880392,0.00017173,2]
[355991700,1741776632695,-500.0,0.00017173,2]
[355991701,1741776632704,-500.0,0.00017173,2]
[355991702,1741776632714,-500.0,0.00017173,2]
[355991703,1741776632723,-500.0,0.00017173,2]
[355991704,1741776632733,-500.0,0.00017173,2]
[355991705,1741776632742,-542.95539186,0.00017173,2]
[355991706,1741776632751,-500.0,0.00017173,2]
[355991707,1741776632761,-500.0,0.00017173,2]
[355991708,1741776632771,-500.0,0.00017173,2]
[355991709,1741776632780,-500.0,0.00017173,2]
[355991710,1741776632789,-500.0,0.00017173,2]
[355991711,1741776632799,-500.0,0.00017173,2]
[355991712,1741776632808,-353.0,0.00017178,2]
[355991713,1741776632818,-403.47516316,0.00017178,2]
[355991714,1741776632827,-344.65694257,0.00017178,2]
[355991715,1741776632838,-52036.77155087,0.000172,2]
[355991723,1741776637879,-499.41924886,0.00016818,2]
[355991724,1741776637889,-659.46732369,0.000172,2]
[355991725,1741776637902,-500.0,0.000172,2]
[355991726,1741776637933,-403.23232785,0.000172,2]
[355991730,1741776639973,-3986.89343908,0.000172,2]
[355991743,1741776646118,-8301.79756717,0.000169,2]
[355991744,1741776646131,-213698.20243283,0.000169,2]
[355991745,1741776646141,-160877.93873539,0.000172,2]
[355991746,1741776646150,-167.8448478,0.000172,2]
[355991747,1741776646162,-167.8448478,0.000172,2]
[355991748,1741776646171,-150.0,0.00017203,2]
[355991749,1741776646180,-1920.0,0.00017203,2]
[355991750,1741776646191,-540.0,0.00017203,2]
[355991751,1741776646200,-2272.0,0.00017203,2]
[355991752,1741776646209,-398.0,0.00017203,2]
[355991754,1741776646219,-406.961,0.00017203,2]
[355991756,1741776646228,-693.8510917,0.0001721,2]
[355991757,1741776646238,-150.0,0.0001721,3]
[355991758,1741776646247,-178.0,0.0001721,3]
[355991759,1741776646256,-224.0,0.0001721,3]
[355991760,1741776646266,-346.0,0.0001721,3]
[355991761,1741776646276,-355.0,0.0001721,3]
[355991762,1741776646286,-548.0,0.0001721,3]
[355991763,1741776646295,-150.0,0.0001721,3]
[355991764,1741776646304,-150.0,0.0001721,3]
[355991765,1741776646313,-150.0,0.0001721,3]
[355991766,1741776646322,-237.0,0.0001721,3]
[355991767,1741776646331,-504.74872754,0.00017257,2]
[355991768,1741776646341,-719.52358209,0.00017265,2]
[355991769,1741776646351,-465.00065101,0.0001727,2]
[355991770,1741776646360,-531.58593068,0.0001728,2]
[355991771,1741776646369,-746.14595463,0.0001732,2]
[355991772,1741776646378,-1060.54157588,0.00017363,2]
[355991773,1741776646388,-5000.0,0.00017373,2]
[355991774,1741776646397,-773.75335495,0.00017375,2]
[355991775,1741776646407,-72366.32185043,0.0001739,2]
[355991776,1741776646416,-847.89680982,0.00017395,2]
[355991777,1741776646426,-151.0,0.000174,2]
[355991778,1741776646435,-802.38222908,0.0001743,2]
[355991779,1741776646444,-832.07037156,0.00017485,2]
[355991780,1741776646456,-24233.0,0.0001749,4]
[355991781,1741776646465,-151.0,0.000175,2]
[355991782,1741776646475,-151.0,0.000175,2]
[355991783,1741776646484,-271.247384,0.000175,2]
[355991784,1741776646493,-271.247384,0.000175,2]
[355991785,1741776646502,-151.0,0.000175,2]
[355991786,1741776646511,-151.0,0.000175,2]
[355991787,1741776646520,-151.0,0.000175,2]
[355991788,1741776646529,-151.0,0.000175,2]
[355991789,1741776646539,-153.858522,0.000175,2]
[355991790,1741776646548,-151.0,0.000175,2]
[355991791,1741776646557,-151.0,0.000175,2]
[355991792,1741776646566,-186.699721,0.000175,2]
[355991793,1741776646575,-151.0,0.000175,2]
[355991794,1741776646584,-151.0,0.000175,2]
[355991795,1741776646593,-151.0,0.000175,2]
[355991796,1741776646602,-151.0,0.000175,2]
[355991797,1741776646611,-151.0,0.000175,2]
[355991798,1741776646620,-224.500784,0.000175,2]
[355991799,1741776646630,-151.0,0.000175,2]
[355991800,1741776646639,-151.0,0.000175,2]
[355991801,1741776646648,-301.574118,0.000175,2]
[355991802,1741776646657,-1104.690274,0.000175,2]
[355991803,1741776646666,-1104.690274,0.000175,2]
[355991804,1741776646675,-151.0,0.000175,2]
[355991805,1741776646685,-151.0,0.000175,2]
[355991806,1741776646694,-30000.88836202,0.000175,7]
[355991807,1741776646704,-862.8569753,0.0001754,2]
[355991808,1741776646714,-894.78268339,0.00017595,2]
[355991809,1741776646723,-847.89680982,0.00017642,2]
[355991810,1741776646732,-927.88964268,0.0001765,2]
[355991811,1741776646741,-962.22155946,0.00017705,2]
[355991812,1741776646750,-169.22306494,0.00017735,2]
[355991813,1741776646759,-997.82375716,0.0001776,2]
[355991814,1741776646769,-68224.38016319,0.000178,2]
[355991816,1741776878212,10000.0,0.0001899,120]
[355991817,1741776894006,4000.0,0.0001899,120]
[355991886,1741777838438,-150.0,0.00017203,2]
[355991887,1741777838452,-150.0,0.00017203,2]
[355991888,1741777838461,-175.29239278,0.00017262,2]
[355991915,1741777843183,-124.70760722,0.00017262,2]
[355991917,1741777843193,-150.0,0.00017263,2]
[355991918,1741777843202,-435.28866,0.00017263,2]
[355991929,1741777846323,-104.71134,0.00017263,2]
[355991930,1741777846333,-1920.0,0.00017263,2]
[355991931,1741777846343,-2272.0,0.00017263,2]
[355991932,1741777846352,-398.0,0.00017263,2]
[355991933,1741777846362,-406.961,0.00017263,2]
[355991934,1741777846371,-1597.29257779,0.000177,2]
[355991935,1741777846379,-175.984,0.00017799,2]
[355991936,1741777846389,-57128.93655898,0.000178,2]
[355991937,1741777846399,-1437.0,0.000178,2]
[355991938,1741777846408,-169.57936198,0.000178,2]
[355991939,1741777846417,-500.0,0.00017873,2]
[355991940,1741777846427,-500.0,0.00017873,2]
[355991941,1741777846438,-500.0,0.00017873,2]
[355991942,1741777846448,-500.0,0.00017873,2]
[355991943,1741777846460,-500.0,0.00017873,2]
[355991944,1741777846470,-500.0,0.00017873,2]
[355991945,1741777846484,-500.0,0.00017873,2]
[355991946,1741777846493,-500.0,0.00017873,2]
[355991947,1741777846502,-500.0,0.00017873,2]
[355991948,1741777846512,-500.0,0.00017873,2]
[355991949,1741777846522,-219.77284024,0.00017873,2]
[355991950,1741777846534,-165.90566722,0.00017873,2]
[355991951,1741777846544,-500.0,0.00017873,2]
[355991952,1741777846554,-500.0,0.00017873,2]
[355991953,1741777846564,-500.0,0.00017873,2]
[355991954,1741777846573,-600.0,0.00017878,2]
[355991955,1741777846582,-222000.0,0.00017889,2]
[355991956,1741777846591,-151.0,0.000179,2]
[355991957,1741777846600,-151.0,0.000179,2]
[355991958,1741777846610,-622.2,0.00017933,2]
[355991959,1741777846619,-500.0,0.00017973,2]
[355991960,1741777846628,-500.0,0.00017973,2]
[355991961,1741777846638,-500.0,0.00017973,2]
[355991962,1741777846647,-500.0,0.00017973,2]
[355991963,1741777846656,-500.0,0.00017973,2]
[355991964,1741777846665,-568.42868273,0.00017973,2]
[355991965,1741777846674,-500.0,0.00017973,2]
[355991966,1741777846683,-500.0,0.00017973,2]
[355991967,1741777846692,-500.0,0.00017973,2]
[355991968,1741777846701,-500.0,0.00017973,2]
[355991969,1741777846710,-473.91371497,0.00017973,2]
[355991970,1741777846719,-500.0,0.00017973,2]
[355991971,1741777846728,-418.01522051,0.00017973,2]
[355991972,1741777846740,-277.63219525,0.00017973,2]
[355991973,1741777846750,-201.73186005,0.00017973,2]
[355991974,1741778519196,547.02,0.00010959,2]
[355992043,1741779038111,-300.0,0.0001729,2]
[355992044,1741779038122,-1920.0,0.00017292,2]
[355992045,1741779038132,-540.0,0.00017292,2]
[355992046,1741779038142,-542.1898,0.00017292,2]
[355992061,1741779043414,-900.89302961,0.00017292,2]
[355992067,1741779046284,-828.91717039,0.00017292,2]
[355992068,1741779046294,-398.0,0.00017292,2]
[355992069,1741779046304,-406.961,0.00017292,2]
[355992070,1741779046313,-150.0,0.00017292,2]
[355992071,1741779046323,-500.0,0.00017773,2]
[355992072,1741779046333,-865.09992659,0.00017778,2]
[355992073,1741779046343,-175.984,0.00017788,2]
[355992074,1741779046353,-169.57936196,0.00017788,2]
[355992075,1741779046363,-24473.92105055,0.00017789,5]
[355992076,1741779046372,-7035.48053748,0.00017789,2]
[355992077,1741779046385,-1638.142412,0.00017789,2]
[355992078,1741779046395,-8673.62294948,0.00017789,2]
[355992079,1741779046405,-8673.62294948,0.00017789,2]
[355992080,1741779046415,-8673.62294948,0.00017789,2]
[355992081,1741779046426,-8673.62294948,0.00017789,2]
[355992082,1741779046438,-8673.62294948,0.00017789,2]
[355992083,1741779046448,-8673.62294948,0.00017789,2]
[355992084,1741779046459,-8673.62294948,0.00017789,2]
[355992085,1741779046468,-8673.62294948,0.00017789,2]
[355992086,1741779046478,-8673.62294948,0.00017789,2]
[355992087,1741779046487,-55804.85058,0.00017789,2]
[355992088,1741779046499,-166195.14942,0.00017789,2]
[355992089,1741779046509,-1250.0,0.00017888,2]
[355992090,1741779046518,-1250.0,0.00017888,2]
[355992091,1741779046527,-1250.0,0.00017888,2]
[355992092,1741779046537,-1250.0,0.00017888,2]
[355992093,1741779046546,-1250.0,0.00017888,2]
[355992094,1741779046556,-1250.0,0.00017888,2]
[355992095,1741779046565,-1250.0,0.00017888,2]
[355992096,1741779046575,-1250.0,0.00017888,2]
[355992097,1741779046584,-1250.0,0.00017888,2]
[355992098,1741779046594,-1250.0,0.00017888,2]
[355992099,1741779046603,-1250.0,0.00017888,2]
[355992100,1741779046613,-1250.0,0.00017888,2]
[355992101,1741779046622,-1250.0,0.00017888,2]
[355992102,1741779046632,-1250.0,0.00017888,2]
[355992103,1741779046642,-1250.0,0.00017888,2]
[355992104,1741779046651,-512.68308096,0.00017888,2]
[355992163,1741780246457,-400.0,0.00017,2]
[355992164,1741780246468,-300.0,0.00017352,2]
[355992165,1741780246479,-150.0,0.00017353,2]
[355992166,1741780246490,-540.0,0.00017353,2]
[355992167,1741780246502,-1858.60564866,0.00017353,2]
[355992168,1741780246523,-61.39435134,0.00017353,2]
[355992169,1741780246533,-2143.9819282,0.00017353,2]
[355992170,1741780246545,-128.0180718,0.00017353,2]
[355992171,1741780246555,-398.0,0.00017353,2]
[355992172,1741780246564,-406.961,0.00017353,2]
[355992173,1741780246575,-169.57936196,0.00017688,2]
[355992174,1741780246584,-1397.63100554,0.00017688,2]
[355992175,1741780246594,-440.36243912,0.00017688,2]
[355992176,1741780246603,-175.98481631,0.00017688,2]
[355992177,1741780246612,-59994.29730579,0.00017689,2]
[355992179,1741780567450,767.28,0.000176,30]
[355992180,1741780882051,2572.36,0.00016021,2]
[355992196,1741781433115,-156.84476,0.00016321,2]
[355992197,1741781433126,-279.5886845,0.00016769,2]
[355992198,1741781433135,-2272.0,0.00017248,2]
[355992199,1741781433145,-398.0,0.00017248,2]
[355992200,1741781433155,-406.961,0.00017248,2]
[355992201,1741781433165,-300.0,0.00017352,2]
[355992202,1741781433176,-150.0,0.00017353,2]
[355992203,1741781433186,-150.0,0.00017353,2]
[355992204,1741781433196,-1920.0,0.00017353,2]
[355992205,1741781433206,-540.0,0.00017353,2]
[355992206,1741781433217,-300.0,0.000175,2]
[355992207,1741781433227,-169.57936196,0.000175,2]
[355992208,1741781433237,-1222.92712983,0.000175,2]
[355992209,1741781433248,-500.0,0.00017573,2]
[355992210,1741781433258,-500.0,0.00017573,2]
[355992211,1741781433268,-500.0,0.00017573,2]
[355992212,1741781433278,-500.0,0.00017573,2]
[355992213,1741781433288,-240.40506264,0.00017588,2]
[355992214,1741781433297,-12236.96052527,0.00017589,5]
[355992215,1741781433320,-33155.39722284,0.00017589,2]
[355992240,1741781438676,-2019.56733533,0.00017211,2]
[355992241,1741781438686,-27056.41316563,0.00017589,2]
[355992324,1741781487163,193.5816553,0.00016021,2]
[355992325,1741781918605,-1747.5928045,0.00016571,2]
[355992326,1741781918625,-1747.5928045,0.00017,5]
[355992327,1741781918637,-504.814391,0.00017,5]
[355992333,1741781974172,-264.2696664,0.000173,3]
[355992334,1741781974205,-169.57936196,0.000174,2]
[355992335,1741781974237,-226.988,0.00017405,2]
[355992336,1741781974268,-406.961,0.00017405,2]
[355992337,1741781974298,-150.0,0.00017405,2]
[355992338,1741781974319,-264.2696664,0.00017405,2]
[355992339,1741781974332,-169.57936196,0.00017405,2]
[355992340,1741781974348,-106.15097164,0.00017405,2]
[355992341,1741781974359,-120.83702836,0.00017405,2]
[355992342,1741781974370,-406.961,0.00017405,2]
[355992343,1741781974385,-150.0,0.00017405,2]
[355992344,1741781974397,-284.40394328,0.00017405,2]
[355992441,1741782637879,-92.03121233,0.00017399,2]
[355992453,1741782638086,-207.96878767,0.00017399,2]
[355992454,1741782638098,-1070.06123861,0.000174,2]
[355992455,1741782638108,-6348.72840176,0.000174,2]
[355992456,1741782638119,-13999.999998,0.000174,2]
[355992457,1741782638131,-957.79802836,0.00017405,2]
[355992458,1741782638143,-2272.0,0.00017405,2]
[355992459,1741782638154,-168.28354385,0.00017488,2]
[355992460,1741782638165,-500.0,0.00017488,2]
[355992461,1741782638176,-500.0,0.00017488,2]
[355992462,1741782638188,-500.0,0.00017488,2]
[355992463,1741782638199,-208.30191056,0.00017488,2]
[355992464,1741782638219,-4992.27666488,0.00017489,5]
[355992465,1741782638248,-2331.55948694,0.00017489,2]
[355992466,1741782638266,-1129.7,0.00017489,2]
[355992614,1741782646134,-150.0,0.00017405,2]
[355992618,1741782646145,-571.10916721,0.00017488,2]
[355992621,1741782646156,-583.49083273,0.00017489,2]
[355992644,1741783138518,171.150811,0.00015995,5]
[355992646,1741783222384,150.0,0.00016021,2]
[355992648,1741783298801,168.360004,0.00015914,2]
[355992725,1741783832086,-213.9329815,0.00016301,2]
[355992727,1741783832096,-19033.4750415,0.00016401,2]
[355992728,1741783832106,-708.6359152,0.00016438,2]
[355992730,1741783832116,-500.0,0.00016534,2]
[355992732,1741783832125,-156.844761,0.00016706,5]
[355992734,1741783832134,-371.57708691,0.00017127,2]
[355992736,1741783832144,-1090.51520522,0.00017197,2]
[355992738,1741783832154,-186.8724011,0.000172,2]
[355992740,1741783832163,-186.8724011,0.000172,2]
[355992742,1741783832172,-186.8724011,0.000172,2]
[355992743,1741783832181,-152.89,0.00017287,2]
[355992744,1741783832191,-152.89,0.00017287,2]
[355992745,1741783832199,-152.89,0.00017287,2]
[355992746,1741783832208,-152.89,0.0001729,2]
[355992748,1741783832217,-152.89,0.0001729,2]
[355992750,1741783832226,-152.89,0.0001729,2]
[355992751,1741783832236,-152.89,0.0001729,2]
[355992753,1741783832246,-152.89,0.0001729,2]
[355992755,1741783832259,-152.89,0.0001729,2]
[355992757,1741783832268,-500.0,0.00017296,2]
[355992758,1741783832277,-500.0,0.00017297,2]
[355992759,1741783832287,-500.0,0.00017297,2]
[355992760,1741783832300,-500.0,0.00017297,2]
[355992761,1741783832310,-500.0,0.00017297,2]
[355992762,1741783832319,-500.0,0.00017297,2]
[355992764,1741783832329,-500.0,0.00017297,2]
[355992765,1741783832339,-500.0,0.00017297,2]
[355992768,1741783832348,-500.0,0.00017297,2]
[355992769,1741783832358,-500.0,0.00017297,2]
[355992771,1741783832367,-152.06880431,0.00017297,2]
[355992773,1741783832376,-500.0,0.00017297,2]
[355992775,1741783832385,-500.0,0.00017297,2]
[355992777,1741783832395,-485.39752991,0.00017297,2]
[355992779,1741783832404,-500.0,0.00017297,2]
[355992781,1741783832413,-500.0,0.00017297,2]
[355992783,1741783832423,-648.39829065,0.00017297,2]
[355992785,1741783832432,-500.0,0.00017297,2]
[355992787,1741783832442,-500.0,0.00017297,2]
[355992789,1741783832451,-500.0,0.00017297,2]
[355992791,1741783832461,-500.0,0.00017297,2]
[355992793,1741783832471,-169.91464712,0.00017299,2]
[355992795,1741783832480,-179.71561082,0.00017299,2]
[355992797,1741783832489,-2496.13833245,0.000173,5]
[355992799,1741783832499,-133101.83117867,0.000173,2]
[355992802,1741783832511,-734.67003646,0.000173,2]
[355992804,1741783832526,-19652.90100909,0.000173,2]
[355992825,1741783837932,-2587.196,0.000173,2]
[355992826,1741783837943,-3345.85183656,0.000173,2]
[355992827,1741783837954,-509.65126164,0.000173,2]
[355992828,1741783837997,-3839.2,0.000173,2]
[355992829,1741783838008,-16725.8,0.000173,2]
[355992830,1741783838020,-8449.43250368,0.000173,2]
[355992831,1741783838032,-3733.74999998,0.000173,2]
[355992832,1741783838057,-20971.46862905,0.000173,2]
[355992833,1741783838117,-8348.24754487,0.000173,2]
[355992835,1741783838127,-186.8724011,0.000173,2]
[355992837,1741783838137,-186.8724011,0.000173,2]
[355992839,1741783838146,-186.8724011,0.000173,2]
[355992841,1741783838155,-186.8724011,0.000173,2]
[355992843,1741783838165,-186.8724011,0.000173,2]
[355992845,1741783838174,-156.3657832,0.000173,2]
[355992847,1741783838183,-167.8448478,0.000173,2]
[355992849,1741783838194,-500.0,0.00017373,2]
[355992851,1741783838204,-500.0,0.00017373,2]
[355992854,1741783838214,-500.0,0.00017373,2]
[355992856,1741783838224,-500.0,0.00017373,2]
[355992858,1741783838396,-500.0,0.00017373,2]
[355992859,1741783838405,-200.375,0.00017375,2]
[355992860,1741783838416,-71542.24159439,0.000174,2]
[355992892,1741783846112,-544.59825588,0.000172,2]
[355992893,1741783846254,-3953.26333498,0.000172,2]
[355992895,1741784331654,70000.0,0.00016021,2]
[355992896,1741784373987,3770.0,0.00016021,2]
[355992899,1741784920988,25846.00102719,0.00016,4]
[355992900,1741784978799,6496.0,0.00016021,2]
[355992943,1741785032351,-198.44979859,0.000163,2]
[355992944,1741785032362,-177.145947,0.00016339,2]
[355992945,1741785032371,-277.0535,0.00016898,2]
[355992946,1741785032383,-677.14730455,0.00016898,2]
[355992947,1741785032393,-160.00469356,0.00016997,2]
[355992948,1741785032405,-139.99530644,0.00016997,2]
[355992949,1741785032415,-213.48717501,0.00016997,2]
[355992950,1741785032425,-2074.09879438,0.00016998,2]
[355992951,1741785032434,-274.87249477,0.00016998,2]
[355992959,1741785038162,-516.48869896,0.00016997,2]
[355992960,1741785038175,-500.0,0.00016997,2]
[355992961,1741785038188,-2076.21523945,0.00016997,2]
[355992962,1741785038200,-2076.21523945,0.00016997,2]
[355992963,1741785038212,-500.0,0.00016997,2]
[355992964,1741785038225,-2076.21523945,0.00016997,2]
[355992965,1741785038236,-2076.21523945,0.00016997,2]
[355992966,1741785038248,-2076.21523945,0.00016997,2]
[355992967,1741785038260,-963.58151678,0.00016997,2]
[355992968,1741785038275,-1112.63372267,0.00016997,2]
[355992969,1741785038286,-2076.21523945,0.00016997,2]
[355992970,1741785038298,-2076.21523945,0.00016997,2]
[355992971,1741785038310,-2076.21523945,0.00016997,2]
[355992972,1741785038322,-2076.21523945,0.00016997,2]
[355992973,1741785038333,-2076.21523945,0.00016997,2]
[355992974,1741785038345,-2076.21523945,0.00016997,2]
[355992975,1741785038356,-2076.21523945,0.00016997,2]
[355992976,1741785038368,-2076.21523945,0.00016997,2]
[355992977,1741785038380,-2076.21523945,0.00016997,2]
[355992978,1741785038390,-2076.21523945,0.00016997,2]
[355992979,1741785038402,-2076.21523945,0.00016997,2]
[355992980,1741785038413,-2076.21523945,0.00016997,2]
[355992981,1741785038425,-2076.21523945,0.00016997,2]
[355992982,1741785038437,-2076.21523945,0.00016997,2]
[355992983,1741785038448,-2076.21523945,0.00016997,2]
[355992984,1741785038460,-2076.21523945,0.00016997,2]
[355992985,1741785038471,-2076.21523945,0.00016997,2]
[355992986,1741785038483,-2076.21523945,0.00016997,2]
[355992987,1741785038494,-2076.21523945,0.00016997,2]
[355992988,1741785038505,-2076.21523945,0.00016997,2]
[355992989,1741785038517,-2076.21523945,0.00016997,2]
[355992990,1741785038528,-2076.21523945,0.00016997,2]
[355992991,1741785038541,-2076.21523945,0.00016997,2]
[355992992,1741785038552,-2076.21523945,0.00016997,2]
[355992993,1741785038564,-2076.21523945,0.00016997,2]
[355992994,1741785038577,-2076.21523945,0.00016997,2]
[355992995,1741785038589,-2076.21523945,0.00016997,2]
[355992996,1741785038602,-2076.21523945,0.00016997,2]
[355992997,1741785038614,-2076.21523945,0.00016997,2]
[355992998,1741785038625,-2076.21523945,0.00016997,2]
[355992999,1741785038637,-2076.21523945,0.00016997,2]
[355993000,1741785038648,-2076.21523945,0.00016997,2]
[355993001,1741785038661,-2076.21523945,0.00016997,2]
[355993002,1741785038672,-2076.21523945,0.00016997,2]
[355993003,1741785038683,-2076.21523945,0.00016997,2]
[355993004,1741785038694,-2076.21523945,0.00016997,2]
[355993005,1741785038705,-2076.21523945,0.00016997,2]
[355993006,1741785038714,-2076.21523945,0.00016997,2]
[355993007,1741785038724,-2076.21523945,0.00016997,2]
[355993008,1741785038733,-282.583281,0.00016999,2]
[355993009,1741785038743,-151.0,0.00016999,2]
[355993010,1741785038752,-151.0,0.00016999,2]
[355993011,1741785038761,-151.0,0.00016999,2]
[355993012,1741785038771,-994.221246,0.00016999,2]
[355993013,1741785038782,-994.221246,0.00016999,2]
[355993014,1741785038791,-994.221246,0.00016999,2]
[355993015,1741785038801,-994.221246,0.00016999,2]
[355993016,1741785039030,-994.221246,0.00016999,2]
[355993017,1741785039049,-994.221246,0.00016999,2]
[355993018,1741785039063,-994.221246,0.00016999,2]
[355993019,1741785039072,-994.221246,0.00016999,2]
[355993020,1741785039082,-994.221246,0.00016999,2]
[355993021,1741785039092,-994.221246,0.00016999,2]
[355993022,1741785039101,-1248.06916622,0.00017,5]
[355993023,1741785039113,-260000.00000559,0.00017,2]
[355993024,1741785039122,-207.209681,0.00017,2]
[355993025,1741785039135,-994.221246,0.00017,2]
[355993026,1741785039144,-994.221246,0.00017,2]
[355993027,1741785039154,-500.0,0.00017073,2]
[355993028,1741785039164,-500.0,0.00017073,2]
[355993029,1741785039173,-500.0,0.00017073,2]
[355993030,1741785039183,-500.0,0.00017073,2]
[355993031,1741785039192,-500.0,0.00017073,2]
[355993032,1741785039202,-500.0,0.00017073,2]
[355993033,1741785039212,-500.0,0.00017073,2]
[355993034,1741785039221,-500.0,0.00017073,2]
[355993035,1741785039231,-500.0,0.00017073,2]
[355993036,1741785039241,-617.75880392,0.00017073,2]
[355993037,1741785039251,-500.0,0.00017073,2]
[355993038,1741785039261,-500.0,0.00017073,2]
[355993039,1741785039270,-500.0,0.00017073,2]
[355993040,1741785039280,-500.0,0.00017073,2]
[355993041,1741785039289,-200.0,0.00017099,2]
[355993042,1741785039299,-200.0,0.00017099,2]
[355993043,1741785039308,-200.0,0.00017099,2]
[355993044,1741785039317,-200.0,0.00017099,2]
[355993045,1741785039327,-200.0,0.00017099,2]
[355993046,1741785039336,-200.0,0.00017099,2]
[355993047,1741785039346,-200.0,0.00017099,2]
[355993048,1741785039356,-200.0,0.00017099,2]
[355993049,1741785039367,-200.0,0.00017099,2]
[355993050,1741785039376,-200.0,0.00017099,2]
[355993051,1741785039386,-200.0,0.00017099,2]
[355993052,1741785039396,-200.0,0.00017099,2]
[355993053,1741785039405,-267.79989044,0.00017099,2]
[355993054,1741785039416,-151.0,0.00017099,2]
[355993055,1741785039425,-160.568377,0.00017099,2]
[355993056,1741785039435,-151.0,0.00017099,2]
[355993057,1741785039445,-151.0,0.00017099,2]
[355993058,1741785039455,-151.0,0.00017099,2]
[355993059,1741785039465,-151.0,0.00017099,2]
[355993060,1741785039476,-151.0,0.00017099,2]
[355993061,1741785039485,-151.0,0.00017099,2]
[355993062,1741785039495,-151.0,0.00017099,2]
[355993063,1741785039504,-151.0,0.00017099,2]
[355993064,1741785039515,-151.0,0.00017099,2]
[355993065,1741785039525,-151.0,0.00017099,2]
[355993066,1741785039534,-151.0,0.00017099,2]
[355993068,1741785039544,-151.0,0.00017099,2]
[355993069,1741785039553,-151.0,0.00017099,2]
[355993070,1741785039562,-151.0,0.00017099,2]
[355993071,1741785039575,-213.025188,0.00017099,2]
[355993072,1741785039585,-151.0,0.00017099,2]
[355993073,1741785039595,-151.0,0.00017099,2]
[355993074,1741785039604,-151.0,0.00017099,2]
[355993075,1741785039616,-208.210136,0.00017099,2]
[355993076,1741785039626,-152088.57360021,0.000171,2]
[355993077,1741785039636,-6567.31014792,0.000171,2]
[355993078,1741785039650,-2534.75347522,0.000171,2]
[355993152,1741785691985,161.98038681,0.00016196,120]
[355993313,1741786103497,-195.0947509,0.00016164,2]
[355993392,1741786232677,-304.9052491,0.00016164,2]
[355993394,1741786232687,-169.57936198,0.00016767,2]
[355993396,1741786232697,-300.0,0.00016849,2]